bitfinex/quotes_ETHUSD_20241231
["timestamp","ask_amount","ask_price","bid_price","bid_amount"]
[1735658554497,2.92321,3420.9,3420.7,0.03648095]
[1735658554691,2.92321,3420.9,3420.3,0.8128]
[1735658555112,2.92321,3420.9,3420.4,0.03654173]
[1735658555287,2.92339,3420.7,3420.4,0.03654173]
[1735658555487,2.92329,3420.8,3420.4,0.03654173]
[1735658555691,2.92314,3421.0,3420.3,0.8128]
[1735658556391,2.92323,3420.9,3420.3,0.8128]
[1735658556713,2.92323,3420.9,3420.4,0.03654173]
[1735658557312,3.0,3420.8,3420.4,0.03654173]
[1735658557479,2.92354,3420.5,3420.4,0.03654173]
[1735658557679,10.06806294,3420.8,3419.3,2.9245]
[1735658557879,10.06806294,3420.8,3419.4,0.8105]
[1735658557880,2.92363,3420.4,3419.4,0.8105]
[1735658558103,7.14473294,3420.8,3419.4,0.84728577]
[1735658558310,2.9239,3420.1,3419.4,0.84728577]
[1735658558613,2.92373,3420.3,3419.4,0.84728577]
[1735658558813,3.0,3420.2,3419.4,0.84728577]
[1735658559111,2.9239,3420.1,3419.4,0.84728577]
[1735658559319,2.9239,3420.1,3419.5,0.37719258]
[1735658559678,2.9239,3420.1,3419.6,0.0369658]
[1735658560183,3.0,3420.2,3419.6,0.0369658]
[1735658560184,2.92413,3419.9,3419.6,0.0369658]
[1735658560405,2.92406,3419.9,3419.4,0.8105]
[1735658560607,1.37981805,3420.6,3419.4,0.8105]
[1735658560882,2.92379,3420.3,3419.5,0.8105]
[1735658561282,0.59001805,3420.6,3419.6,0.03720709]
[1735658561283,2.92382,3420.2,3419.6,0.03720709]
[1735658561505,2.92415,3419.8,3419.6,0.03720709]
[1735658561712,2.92415,3419.8,3419.5,0.8105]
[1735658561983,2.92415,3419.8,3419.6,0.0372002]
[1735658562793,2.92415,3419.8,3419.5,0.8105]
[1735658563619,2.92415,3419.8,3419.6,0.0372002]
[1735658563984,2.92415,3419.8,3419.5,0.8105]
[1735658564200,2.92415,3419.8,3419.6,0.0372002]
[1735658564401,2.92422,3419.8,3419.5,0.8105]
[1735658565103,2.92422,3419.8,3419.6,0.0372002]
[1735658565325,2.92423,3419.7,3419.6,0.0372002]
[1735658565622,2.92372,3420.3,3419.1,0.7611]
[1735658565809,3.93077529,3420.2,3419.1,0.7611]
[1735658566009,2.92416,3419.8,3419.1,0.7611]
[1735658566200,2.92416,3419.8,3419.2,0.03794315]
[1735658567612,2.924,3420.0,3419.2,0.03794315]
[1735658567809,2.92372,3420.4,3419.3,3.68563]
[1735658568010,2.92372,3420.4,3419.4,0.41021854]
[1735658568215,2.9238,3420.2,3419.4,0.41021854]
[1735658568601,2.9238,3420.2,3419.4,0.37235732]
[1735658569434,3.7898,3420.5,3419.4,0.37235732]
[1735658569608,2.92414,3419.8,3419.3,0.7611]
[1735658570005,2.92432,3419.6,3419.4,0.03786122]
[1735658570238,2.92432,3419.6,3419.3,0.7611]
[1735658570533,2.92422,3419.8,3419.3,0.7611]
[1735658570836,3.0,3420.0,3419.3,0.7611]
[1735658571145,2.92417,3419.8,3419.3,0.7611]
[1735658571314,2.92417,3419.8,3419.4,0.03665592]
[1735658571697,0.860163,3421.3,3419.4,0.03665592]
[1735658571698,0.360163,3421.3,3419.4,0.03665592]
[1735658571958,2.92354,3420.6,3419.6,2.92429]
[1735658572160,2.92354,3420.6,3419.7,4.05752459]
[1735658572376,2.92383,3420.2,3419.7,0.79769511]
[1735658572668,2.9238,3420.2,3419.7,0.79769511]
[1735658572799,5.73263788,3420.3,3419.7,0.79769511]
[1735658572998,2.92395,3420.1,3419.7,0.79769511]
[1735658573240,2.92395,3420.1,3419.7,0.7611]
[1735658573643,2.92395,3420.1,3419.8,0.03657483]
[1735658573951,2.92406,3419.9,3419.8,0.03657483]
[1735658574131,2.92406,3419.9,3418.9,0.8046]
[1735658574441,2.92406,3419.9,3419.1,0.8046]
[1735658574870,2.92406,3419.9,3419.2,0.03669648]
[1735658579907,2.92379,3420.3,3419.3,0.8046]
[1735658580208,5.92365,3420.4,3419.5,0.8046]
[1735658580388,2.92355,3420.5,3419.7,0.8046]
[1735658580588,2.92355,3420.5,3419.8,0.03651967]
[1735658581469,0.7859,3420.8,3419.8,0.03651967]
[1735658581676,3.0,3420.7,3419.8,0.03651967]
[1735658581900,2.92405,3420.0,3419.4,0.8046]
[1735658582102,2.92363,3420.4,3419.4,0.8046]
[1735658582103,3.0,3420.4,3419.4,0.8046]
[1735658582313,3.0,3420.4,3419.5,0.03658048]
[1735658582513,3.0,3420.4,3419.4,0.8046]
[1735658582888,2.92386,3420.2,3419.4,0.8046]
[1735658583218,2.92386,3420.2,3419.5,0.03658048]
[1735658584283,3.0,3420.4,3419.5,0.03658048]
[1735658584511,2.9239,3420.1,3419.4,0.8046]
[1735658584721,2.92374,3420.3,3419.6,0.03534086]
[1735658584981,2.92374,3420.3,3419.7,0.83992059]
[1735658586099,2.9238,3420.2,3419.7,0.83992059]
[1735658587701,2.92389,3420.1,3419.7,0.83992059]
[1735658588425,2.92403,3420.0,3419.7,0.03532059]
[1735658588599,2.92397,3420.0,3419.4,0.802]
[1735658588921,3.59461788,3420.1,3419.5,0.03489228]
[1735658589121,3.0,3420.0,3419.5,0.03489228]
[1735658589327,2.92416,3419.8,3419.5,0.03489228]
[1735658590997,0.95184579,3419.9,3419.5,0.03489228]
[1735658591194,5.92402,3420.0,3419.4,0.802]
[1735658591616,3.0,3420.0,3419.4,0.802]
[1735658591936,2.92389,3420.1,3419.4,0.802]
[1735658592303,2.92389,3420.1,3419.5,0.03378662]
[1735658593133,0.7857,3420.7,3419.6,0.802]
[1735658593317,2.92354,3420.6,3419.6,0.802]
[1735658593531,3.0,3420.8,3419.8,0.802]
[1735658593839,2.92374,3420.3,3419.8,0.802]
[1735658594214,2.9238,3420.2,3419.9,0.03370554]
[1735658594415,2.92396,3420.1,3419.8,0.802]
[1735658594647,2.92398,3420.0,3419.9,0.03362281]
[1735658594800,3.0,3420.5,3419.9,0.03362281]
[1735658595005,3.0,3420.5,3419.5,0.802]
[1735658595006,3.68188501,3420.5,3419.5,2.32424884]
[1735658595325,3.0,3420.5,3419.6,0.03368363]
[1735658595527,2.92381,3420.2,3419.6,0.03368363]
[1735658595733,3.0,3420.5,3419.6,0.03368363]
[1735658596119,2.92381,3420.2,3419.6,0.03368363]
[1735658597345,2.92366,3420.4,3419.6,0.03368363]
[1735658597509,3.7857,3420.7,3419.6,0.03368363]
[1735658597710,2.9238,3420.2,3419.6,0.03368363]
[1735658598848,2.92367,3420.4,3419.6,0.03368363]
[1735658599255,2.92379,3420.3,3419.6,0.03368363]
[1735658603086,0.43705262,3420.6,3419.7,1.01583224]
[1735658603211,2.92407,3419.9,3419.7,1.01583224]
[1735658603543,2.92407,3419.9,3419.8,0.03358795]
[1735658604347,3.216477,3419.9,3419.5,0.802]
[1735658604512,2.92407,3419.9,3419.8,0.03362242]
[1735658604717,2.92407,3419.9,3419.5,0.802]
[1735658604906,2.92407,3419.9,3419.8,0.03362242]
[1735658605114,2.92407,3419.9,3419.5,0.802]
[1735658605614,2.92407,3419.9,3419.6,0.03366296]
[1735658606152,2.92389,3420.1,3419.6,0.03366296]
[1735658606511,6.36053262,3420.6,3419.6,2.84258084]
[1735658606710,2.92379,3420.3,3419.6,2.84258084]
[1735658606942,2.92383,3420.2,3419.6,2.84258084]
[1735658608752,2.9239,3420.1,3419.6,2.84258084]
[1735658610651,1.01768636,3420.5,3419.6,0.03366296]
[1735658610858,2.92406,3419.9,3419.6,0.03366296]
[1735658611634,2.92423,3419.7,3419.6,0.03366296]
[1735658612313,3.0,3420.1,3419.6,2.80891788]
[1735658612454,3.0,3420.1,3419.7,0.7639]
[1735658612662,5.92393,3420.1,3419.7,0.7639]
[1735658612860,5.92393,3420.1,3419.8,0.03267652]
[1735658613376,2.92393,3420.1,3419.8,0.03267652]
[1735658613936,0.37336656,3420.4,3419.8,0.03267652]
[1735658614131,2.92376,3420.3,3419.8,0.03267652]
[1735658614362,2.92382,3420.2,3419.8,0.03267652]
[1735658614571,2.92389,3420.1,3419.8,0.03267652]
[1735658614956,2.92406,3419.9,3419.8,0.03267652]
[1735658615348,2.92388,3420.2,3419.8,0.03267652]
[1735658615553,2.92391,3420.1,3419.8,0.03267652]
[1735658624389,0.37336656,3420.4,3419.8,0.03267652]
[1735658624690,2.92406,3419.9,3419.8,0.03267652]
[1735658625103,2.92406,3419.9,3419.4,2.04013178]
[1735658625297,2.92406,3419.9,3419.8,0.03243524]
[1735658625496,2.92406,3419.9,3419.4,2.04013178]
[1735658625702,2.92406,3419.9,3419.8,0.03243524]
[1735658625855,2.92406,3419.9,3419.4,0.8143]
[1735658626057,2.92406,3419.9,3419.5,0.03249605]
[1735658626296,2.92397,3420.0,3419.5,0.03249605]
[1735658627482,0.37336656,3420.4,3419.5,0.03249605]
[1735658627686,2.92407,3419.9,3419.5,0.03249605]
[1735658627887,2.9238,3420.2,3419.5,0.03249605]
[1735658628070,2.92414,3419.9,3419.5,0.03249605]
[1735658628397,2.92416,3419.8,3419.5,0.03249605]
[1735658628966,0.71891976,3420.3,3419.5,0.03249605]
[1735658629291,2.92431,3419.6,3419.5,0.03249605]
[1735658629493,0.7697,3419.9,3419.2,1.22583178]
[1735658629695,2.92454,3419.4,3419.2,1.22583178]
[1735658629869,2.92454,3419.4,3419.1,0.8143]
[1735658630074,2.92454,3419.4,3419.3,0.0315175]
[1735658630322,2.92454,3419.4,3419.2,0.03179975]
[1735658630598,2.92454,3419.4,3419.3,0.03177948]
[1735658630960,2.92454,3419.4,3419.1,0.8143]
[1735658631170,2.92454,3419.4,3419.3,0.03193807]
[1735658631370,2.92454,3419.4,3419.2,0.03195834]
[1735658632367,2.92435,3419.6,3419.2,0.03195834]
[1735658633211,7.26273415,3420.2,3419.2,0.03195834]
[1735658633212,2.92422,3419.8,3419.2,0.39747596]
[1735658633904,2.92382,3420.2,3419.6,2.80891788]
[1735658634107,2.92382,3420.2,3419.7,0.8261]
[1735658634317,2.9239,3420.1,3419.7,0.85826721]
[1735658634475,3.03063099,3420.3,3419.7,0.85826721]
[1735658634840,2.9241,3419.9,3419.7,0.85826721]
[1735658636212,2.92391,3420.1,3419.7,0.85826721]
[1735658636614,2.92374,3420.3,3419.7,0.85826721]
[1735658637188,2.92382,3420.2,3419.7,0.85826721]
[1735658637410,2.92366,3420.4,3419.7,1.06667711]
[1735658638296,3.03063099,3421.1,3420.1,0.8261]
[1735658638499,3.03063099,3421.1,3420.4,0.8261]
[1735658638705,2.92315,3421.0,3420.4,0.8261]
[1735658638913,2.92315,3421.0,3420.5,0.02998374]
[1735658639780,5.95348099,3421.4,3420.5,0.02998374]
[1735658639781,6.61822307,3421.4,3420.5,0.02998374]
[1735658639978,3.74031231,3421.3,3420.5,0.02998374]
[1735658640229,0.74031231,3421.3,3420.5,0.02998374]
[1735658641421,2.92389,3420.1,3420.0,1.22583178]
[1735658641920,0.7849,3420.6,3420.0,1.22583178]
[1735658642354,2.92382,3420.2,3420.0,1.22583178]
[1735658642633,2.92382,3420.2,3419.7,0.8261]
[1735658642826,2.92382,3420.2,3419.7,1.18960179]
[1735658643330,0.7849,3420.6,3419.7,0.8261]
[1735658643633,2.92408,3419.9,3419.4,2.05193178]
[1735658643965,2.9244,3419.5,3419.4,1.22583178]
[1735658644091,3.0,3420.4,3419.4,1.22583178]
[1735658644296,2.92418,3419.8,3419.5,0.8261]
[1735658644542,2.92439,3419.6,3419.3,1.22583178]
[1735658645140,2.92417,3419.8,3419.4,0.0301722]
[1735658645799,2.92417,3419.8,3419.1,0.8261]
[1735658646001,2.92417,3419.8,3419.5,0.03015193]
[1735658646213,2.92417,3419.8,3419.2,0.20519318]
[1735658646412,2.92417,3419.8,3419.6,0.03013165]
[1735658646605,2.92417,3419.8,3419.2,0.20519318]
[1735658646831,2.92417,3419.8,3419.7,0.03011138]
[1735658647325,2.92417,3419.8,3419.2,0.20519318]
[1735658647529,2.92417,3419.8,3419.7,0.03011138]
[1735658647735,2.92417,3419.8,3419.2,0.20519318]
[1735658647935,2.92417,3419.8,3419.7,0.03011138]
[1735658648135,2.92417,3419.8,3419.1,0.8261]
[1735658648310,2.92417,3419.8,3419.7,0.03011138]
[1735658648506,2.92417,3419.8,3419.1,0.8261]
[1735658648754,2.92417,3419.8,3419.7,0.03011138]
[1735658648956,2.92417,3419.8,3419.1,0.8261]
[1735658649156,2.92417,3419.8,3419.7,0.03011138]
[1735658649455,2.92417,3419.8,3419.1,0.8261]
[1735658649653,3.0,3420.1,3419.1,0.8261]
[1735658649947,2.92457,3419.3,3419.2,0.03021275]
[1735658650341,2.92457,3419.3,3418.9,0.7857]
[1735658650541,0.819,3419.6,3419.2,0.02858704]
[1735658650857,2.92425,3419.7,3418.9,0.7857]
[1735658651037,2.92425,3419.7,3419.3,0.02864947]
[1735658651238,5.92409,3419.9,3419.0,0.49365218]
[1735658651407,0.819,3420.0,3419.4,0.0286292]
[1735658651615,2.92415,3419.8,3419.1,0.7857]
[1735658651853,2.92401,3420.0,3419.5,0.02860203]
[1735658652052,2.92401,3420.0,3419.1,0.7857]
[1735658652246,2.92406,3419.9,3419.6,0.02858176]
[1735658652449,3.0,3420.2,3419.1,3.59461788]
[1735658652650,2.92371,3420.4,3419.8,0.7857]
[1735658652851,2.92375,3420.3,3419.8,0.7857]
[1735658653152,3.0,3420.4,3419.9,0.02844513]
[1735658653356,3.0,3420.6,3419.8,0.7857]
[1735658653550,2.92365,3420.4,3420.0,0.02841797]
[1735658653735,2.92365,3420.4,3419.9,0.02843824]
[1735658653926,2.92365,3420.4,3419.8,0.7857]
[1735658654533,2.92365,3420.4,3419.9,0.02843824]
[1735658654739,2.92369,3420.4,3419.8,0.7857]
[1735658654941,2.92369,3420.4,3420.0,0.02826635]
[1735658655167,2.92369,3420.4,3419.8,0.7857]
[1735658655450,2.92369,3420.4,3420.1,0.02824609]
[1735658655652,2.92369,3420.4,3419.8,0.7857]
[1735658656161,2.92369,3420.4,3419.9,0.02828662]
[1735658656333,3.819,3420.7,3419.8,0.7857]
[1735658656534,2.9238,3420.3,3420.0,0.02826635]
[1735658656847,2.9238,3420.3,3419.9,0.02828662]
[1735658657154,2.9238,3420.3,3420.0,0.02826635]
[1735658657380,2.9238,3420.3,3419.8,0.7857]
[1735658657544,2.9238,3420.3,3420.1,0.02824609]
[1735658657747,2.9238,3420.3,3419.8,0.7857]
[1735658658057,0.819,3420.7,3420.2,0.02822582]
[1735658658220,3.03063099,3420.9,3420.3,0.7857]
[1735658658415,3.03063099,3420.9,3420.4,0.37377858]
[1735658658644,3.03063099,3420.9,3420.4,0.40196387]
[1735658658843,6.55978719,3421.2,3420.4,0.40196387]
[1735658658844,3.03063099,3421.0,3420.4,0.40196387]
[1735658659220,2.92321,3420.9,3420.3,0.7857]
[1735658659564,2.92321,3420.9,3420.4,0.02790967]
[1735658659721,3.03063099,3421.0,3420.4,0.02790967]
[1735658659722,2.92329,3420.8,3420.4,0.02790967]
[1735658659918,5.92284,3421.4,3420.4,0.02790967]
[1735658660160,0.819,3421.2,3420.3,0.7857]
[1735658660362,0.374184,3421.1,3420.3,0.7857]
[1735658660560,0.374184,3421.1,3420.4,0.02933476]
[1735658660862,0.374184,3421.1,3420.3,0.7857]
[1735658661057,5.92312,3421.0,3420.3,0.7857]
[1735658661271,2.92337,3420.8,3420.4,0.02933476]
[1735658661439,0.819,3421.2,3420.4,0.02933476]
[1735658661642,0.674191,3421.1,3420.3,0.7857]
[1735658662030,2.92354,3420.5,3420.4,0.02933476]
[1735658662330,2.92354,3420.5,3419.9,2.30842517]
[1735658662557,2.92354,3420.5,3420.4,0.02922404]
[1735658662761,2.92342,3420.7,3419.9,2.30842517]
[1735658663062,2.92348,3420.6,3420.4,0.0293569]
[1735658663224,2.92348,3420.6,3419.9,0.7857]
[1735658663430,2.92332,3420.8,3419.9,0.7857]
[1735658663631,3.82923099,3421.3,3420.1,0.7744]
[1735658663858,2.92314,3421.0,3420.1,0.7744]
[1735658664052,2.92314,3421.0,3420.2,0.02934866]
[1735658664255,2.9233,3420.8,3420.2,0.02934866]
[1735658664970,2.92359,3420.5,3420.2,0.02934866]
[1735658665670,2.92359,3420.5,3420.3,0.02923837]
[1735658665866,2.92359,3420.5,3420.3,0.04385142]
[1735658666072,2.92359,3420.5,3420.1,0.7744]
[1735658666274,3.0,3420.9,3420.1,0.7744]
[1735658666567,2.9237,3420.4,3419.7,0.7782]
[1735658667548,2.92373,3420.3,3419.7,0.7782]
[1735658667958,2.92373,3420.3,3419.4,2.92447]
[1735658667959,0.8195,3420.6,3419.4,1.22583178]
[1735658668137,2.92388,3420.2,3419.5,1.4797892]
[1735658668955,2.92367,3420.4,3419.5,0.7782]
[1735658669172,8.95367099,3421.1,3419.8,0.7782]
[1735658669379,2.92329,3420.8,3419.9,0.7782]
[1735658669770,6.03063099,3421.1,3419.9,0.7782]
[1735658669962,2.92363,3420.4,3419.9,0.7782]
[1735658670142,2.92363,3420.4,3419.9,3.31466663]
[1735658670341,2.92371,3420.4,3419.9,3.95259124]
[1735658670957,2.92371,3420.4,3419.9,1.41612461]
[1735658671158,2.92371,3420.4,3419.9,0.7782]
[1735658671354,2.92343,3420.7,3419.9,0.7782]
[1735658671574,2.92324,3420.9,3419.9,2.92405]
[1735658671883,2.92324,3420.9,3420.0,0.7782]
[1735658672269,2.92324,3420.9,3420.0,2.92396]
[1735658672470,0.8195,3421.2,3420.2,0.7782]
[1735658672471,2.92308,3421.1,3420.2,0.7782]
[1735658673165,2.92308,3421.1,3420.4,0.7782]
[1735658673368,3.0,3421.5,3420.4,0.7782]
[1735658673567,3.0,3421.3,3420.5,0.82194946]
[1735658673879,2.92278,3421.4,3420.5,0.82194946]
[1735658674080,2.92278,3421.4,3420.6,0.65544773]
[1735658674387,2.92278,3421.4,3420.7,0.82189341]
[1735658674776,1.42007155,3421.7,3420.7,0.82189341]
[1735658675089,4.34265155,3421.7,3420.7,0.82189341]
[1735658675292,2.92298,3421.2,3420.8,0.14773411]
[1735658675647,2.92298,3421.2,3420.9,0.04362588]
[1735658677087,2.9228,3421.4,3420.9,0.04362588]
[1735658677290,2.92264,3421.6,3420.9,0.04362588]
[1735658677588,2.92264,3421.6,3421.0,0.7782]
[1735658678093,2.92264,3421.6,3421.1,0.04855115]
[1735658681476,2.92246,3421.8,3421.2,0.7587]
[1735658681867,2.92246,3421.8,3421.3,0.04812657]
[1735658682068,0.8321,3422.3,3421.3,0.04812657]
[1735658682263,2.92224,3422.1,3421.2,0.7587]
[1735658682479,2.92227,3422.0,3421.4,0.04808859]
[1735658682678,2.92227,3422.0,3421.4,0.7587]
[1735658682883,2.92199,3422.4,3421.6,0.7587]
[1735658683996,2.92201,3422.3,3421.6,0.7587]
[1735658685060,2.92211,3422.2,3421.6,0.7587]
[1735658686291,0.57700928,3422.4,3421.6,0.7587]
[1735658686784,2.92214,3422.2,3421.6,0.7587]
[1735658686986,1.01010421,3422.4,3421.6,0.7587]
[1735658687498,2.92231,3422.0,3421.6,0.7587]
[1735658690299,2.92224,3422.1,3421.6,0.7587]
[1735658693013,2.92204,3422.3,3421.6,0.7587]
[1735658694319,2.9221,3422.2,3421.6,0.7587]
[1735658694979,2.9221,3422.2,3421.6,1.126855]
[1735658696825,3.49896928,3422.4,3421.6,1.126855]
[1735658697320,2.92204,3422.3,3421.6,0.7587]
[1735658699520,2.92229,3422.0,3421.6,0.7587]
[1735658699710,2.92209,3422.2,3421.6,0.7587]
[1735658700107,2.92252,3421.7,3420.9,0.7956]
[1735658700293,2.92226,3422.0,3421.1,0.7956]
[1735658701439,0.57700928,3422.4,3421.2,2.80891788]
[1735658701620,0.57700928,3422.4,3421.3,0.7956]
[1735658701823,3.49895928,3422.4,3421.2,2.80891788]
[1735658701982,0.57700928,3422.4,3421.6,2.92253]
[1735658702187,0.57700928,3422.4,3421.8,0.7956]
[1735658703200,3.49896928,3422.4,3421.8,0.7956]
[1735658703399,0.57700928,3422.4,3421.8,0.7956]
[1735658703604,2.92216,3422.2,3421.8,0.7956]
[1735658704120,3.49896928,3422.4,3421.8,0.7956]
[1735658704324,0.57700928,3422.4,3421.8,0.7956]
[1735658704526,2.92211,3422.2,3421.8,0.7956]
[1735658706890,3.49895928,3422.4,3421.8,0.7956]
[1735658707090,0.57700928,3422.4,3421.8,0.7956]
[1735658707308,2.80891788,3423.7,3422.3,0.7956]
[1735658707309,2.92119,3423.3,3422.3,0.7956]
[1735658707595,2.92119,3423.3,3422.4,0.8241]
[1735658707795,2.92119,3423.3,3422.7,0.8241]
[1735658708222,5.96500858,3423.5,3422.9,2.80891788]
[1735658708533,3.04398858,3423.5,3422.9,11.73900967]
[1735658709030,5.02488401,3424.2,3422.9,11.73900967]
[1735658709031,2.92048,3424.1,3422.9,14.73900967]
[1735658709240,2.92048,3424.1,3422.9,13.44856967]
[1735658709596,2.92048,3424.1,3422.9,13.92109967]
[1735658710133,2.92048,3424.1,3422.9,9.91780967]
[1735658710430,3.68343,3424.5,3422.9,14.91780967]
[1735658710608,2.92063,3424.0,3422.9,12.55549967]
[1735658711017,2.92063,3424.0,3422.9,9.91780967]
[1735658711223,2.92063,3424.0,3422.9,14.91780967]
[1735658711896,2.92046,3424.2,3422.9,13.43687967]
[1735658712325,2.92046,3424.2,3422.9,12.61488967]
[1735658712530,2.92046,3424.2,3422.9,11.94831967]
[1735658712730,0.7633,3424.5,3422.9,4.18740179]
[1735658712917,0.7633,3423.8,3422.9,1.18740179]
[1735658713118,2.92098,3423.6,3422.9,0.8241]
[1735658713319,0.7633,3424.2,3422.9,0.8241]
[1735658713517,2.92076,3423.8,3422.9,0.8241]
[1735658713738,2.92058,3424.0,3422.9,6.49235]
[1735658714043,0.7633,3424.5,3422.9,3.74559]
[1735658714246,0.7633,3424.5,3422.9,6.49235]
[1735658714247,2.92064,3423.9,3422.9,6.49235]
[1735658714543,2.92064,3423.9,3422.9,3.74559]
[1735658714746,0.7633,3424.5,3422.9,1.47955079]
[1735658715042,2.9208,3423.8,3422.9,1.47955079]
[1735658715209,0.7633,3423.9,3422.4,3.63301788]
[1735658715606,0.7633,3423.9,3422.7,2.80891788]
[1735658715813,3.0,3423.8,3422.7,2.80891788]
[1735658716011,2.92109,3423.4,3422.7,2.80891788]
[1735658716229,3.7633,3423.9,3422.7,2.80891788]
[1735658716433,2.92154,3422.9,3422.4,3.63301788]
[1735658716622,2.92149,3422.9,3421.8,3.63301788]
[1735658716831,2.92199,3422.4,3421.8,0.8241]
[1735658717223,2.92199,3422.4,3421.8,1.90187888]
[1735658717624,0.7633,3422.6,3421.8,4.71079676]
[1735658717625,3.68507,3422.6,3421.8,4.71079676]
[1735658718078,2.68507,3422.6,3421.8,4.71079676]
[1735658718216,2.92194,3422.4,3421.8,4.71079676]
[1735658718421,2.92164,3422.8,3421.8,3.63301788]
[1735658718655,2.92158,3422.8,3421.5,3.63301788]
[1735658719147,2.92203,3422.3,3421.5,3.63301788]
[1735658719657,2.92186,3422.5,3421.5,3.63301788]
[1735658719866,0.3,3423.0,3421.9,0.8241]
[1735658720069,2.92166,3422.8,3421.9,0.8241]
[1735658720346,0.3,3423.0,3421.9,0.8241]
[1735658720646,2.92195,3422.4,3421.9,0.8241]
[1735658720853,2.92195,3422.4,3421.8,2.80891788]
[1735658721052,0.7633,3422.5,3421.8,0.39963197]
[1735658721262,0.7633,3422.5,3421.6,1.18740179]
[1735658721263,0.7633,3422.5,3421.6,0.8241]
[1735658721428,2.92209,3422.3,3421.6,0.8241]
[1735658722513,2.92211,3422.2,3421.6,0.8241]
[1735658722750,2.92211,3422.2,3421.6,1.47968579]
[1735658722950,2.92195,3422.4,3421.6,1.47968579]
[1735658723325,2.92201,3422.3,3421.6,1.47968579]
[1735658723754,2.92161,3422.8,3421.8,2.80891788]
[1735658724051,2.92161,3422.8,3421.6,1.47968579]
[1735658724052,0.3,3423.0,3422.3,0.7527]
[1735658724252,0.3,3423.0,3422.4,0.64836979]
[1735658725351,3.22146,3423.0,3422.3,0.7527]
[1735658725649,2.92153,3422.9,3422.3,0.7527]
[1735658725848,2.92153,3422.9,3422.0,2.92226]
[1735658725849,0.8224,3422.9,3422.0,0.7527]
[1735658726015,2.92177,3422.6,3422.0,0.7527]
[1735658726410,2.92195,3422.4,3422.0,0.7527]
[1735658726732,2.9221,3422.2,3421.7,0.7527]
[1735658727255,2.92246,3421.8,3421.4,0.7527]
[1735658727637,2.80891788,3422.2,3421.0,1.124581]
[1735658727838,2.92271,3421.5,3421.0,0.348975]
[1735658728149,2.92271,3421.5,3421.0,0.277903]
[1735658728350,2.92254,3421.7,3421.0,0.277903]
[1735658728552,2.92238,3421.9,3421.0,0.277903]
[1735658728765,2.92221,3422.1,3421.3,2.80891788]
[1735658728967,2.92204,3422.3,3421.3,2.80891788]
[1735658729128,2.92191,3422.5,3421.3,2.80891788]
[1735658729328,2.92191,3422.5,3421.5,2.92268]
[1735658730163,2.92202,3422.3,3421.3,5.73174788]
[1735658730364,2.92211,3422.2,3421.4,0.604043]
[1735658730575,2.92248,3421.8,3421.0,2.80891788]
[1735658730862,2.92289,3421.3,3420.9,1.22209095]
[1735658731063,2.9227,3421.5,3420.9,1.22209095]
[1735658731471,2.9227,3421.5,3420.8,0.7527]
[1735658731644,0.8224,3422.3,3421.0,0.7527]
[1735658731831,2.92222,3422.1,3421.2,2.80891788]
[1735658732033,2.92202,3422.3,3421.3,0.7527]
[1735658732435,3.8224,3422.6,3421.3,0.7527]
[1735658732737,6.74419,3422.6,3421.3,0.7527]
[1735658732937,0.674419,3422.5,3421.3,0.7527]
[1735658733167,2.92218,3422.1,3421.3,0.7527]
[1735658733548,2.92239,3421.9,3421.3,0.7527]
[1735658733934,2.92192,3422.4,3421.3,0.7527]
[1735658734160,2.92213,3422.2,3421.3,0.7527]
[1735658734347,2.92223,3422.1,3421.3,1.70116379]
[1735658734543,2.92228,3422.0,3421.3,1.70116379]
[1735658734745,2.92236,3421.9,3421.3,0.7527]
[1735658735279,2.92258,3421.7,3421.3,0.7527]
[1735658736475,0.8224,3421.9,3421.0,0.7527]
[1735658736876,2.92255,3421.7,3421.0,0.7527]
[1735658738379,2.92236,3421.9,3421.0,0.7527]
[1735658738581,2.92236,3421.9,3421.0,1.70118779]
[1735658739079,2.92254,3421.7,3421.0,0.7527]
[1735658739877,2.92236,3421.9,3421.0,0.7527]
[1735658740676,2.92252,3421.7,3421.0,0.7527]
[1735658742144,3.67758,3422.2,3421.0,0.7527]
[1735658742145,0.7554,3422.2,3421.0,0.7527]
[1735658742381,1.429819,3422.5,3421.3,0.8118]
[1735658742684,2.92194,3422.4,3421.4,3.73455]
[1735658742980,3.0,3422.7,3421.5,0.8118]
[1735658743185,0.3,3423.0,3421.9,0.8118]
[1735658743516,0.3,3423.0,3422.5,0.8118]
[1735658743764,0.3,3423.0,3422.6,2.9217]
[1735658744782,0.3,3423.0,3422.5,0.8118]
[1735658746351,3.22143,3423.0,3422.5,0.8118]
[1735658747579,2.92161,3422.8,3422.2,0.7921]
[1735658747712,3.326581,3422.8,3422.2,0.7921]
[1735658748143,0.404971,3422.8,3422.2,0.7921]
[1735658748345,2.92173,3422.7,3422.2,0.7921]
[1735658748552,2.92185,3422.5,3421.9,0.7921]
[1735658748713,2.92164,3422.8,3421.9,0.7921]
[1735658748910,2.92167,3422.7,3421.9,0.7921]
[1735658750450,0.3,3423.0,3421.9,0.7921]
[1735658750619,0.704939,3422.9,3421.9,0.7921]
[1735658751320,2.92173,3422.7,3421.9,0.7921]
[1735658751515,2.9218,3422.6,3421.9,0.7921]
[1735658751819,2.92165,3422.8,3421.9,0.7921]
[1735658752646,0.704939,3422.9,3421.9,3.71438]
[1735658752851,3.22144,3423.0,3422.0,0.65232979]
[1735658753353,0.3,3423.0,3422.2,0.7537]
[1735658754953,0.3,3423.0,3422.3,2.92199]
[1735658755458,0.3,3423.0,3422.9,2.92149]
[1735658755645,0.3,3423.0,3422.9,7.69360079]
[1735658755849,0.3,3423.0,3422.9,1.40211079]
[1735658758032,0.3,3423.0,3422.9,4.32360079]
[1735658758637,0.3,3423.0,3422.9,1.40211079]
[1735658758841,0.3,3423.0,3422.9,0.7537]
[1735658761061,0.3,3423.0,3422.9,3.67519]
[1735658761266,0.3,3423.0,3422.9,6.6464]